[Event "CZE-ch Open 2018"]
[Site "Ostrava"]
[Date "2018.05.05"]
[Round "8"]
[White "Kolar, Stanislav"]
[Black "Vystrcil, Martin"]
[Result "0-1"]
[ECO "E91"]
[WhiteElo "2091"]
[BlackElo "2146"]
[Annotator "ChessBase"]
[PlyCount "100"]
[EventDate "2018.??.??"]
[EventCountry "CZE"]
[SourceTitle "playchess.com"]
[Source "ChessBase"]
[SourceQuality "1"]
[TimeControl "40/5400+30:900+30"]

1. Nf3 {[%emt 0:00:00]} Nf6 {[%emt 0:00:13]} 2. c4 {[%emt 0:00:00]} g6 {[%emt 0:00:07]} 3. Nc3 {[%emt 0:00:00]} Bg7 {[%emt 0:00:05]} 4. d4 {[%emt 0:00:08]} d6 {[%emt 0:00:08]} 5. e4 {[%emt 0:00:07]} O-O {[%emt 0:00:10]} 6. Be2 {[%emt 0:00:08]} Nbd7 {[%emt 0:01:47]} 7. O-O {[%emt 0:00:27]} e5 {[%emt 0:00:07]} 8. dxe5 {[%emt 0:00:08]} dxe5 {[%emt 0:00:12]} 9. Qc2 {[%emt 0:01:09]} c6 {[%emt 0:00:59]} 10. Be3 {[%emt 0:01:06]} Re8 {[%emt 0:02:27]} 11. h3 {[%emt 0:01:17]} Qc7 {[%emt 0:02:28]} 12. Rfd1 {[%emt 0:01:51]} Bf8 {[%emt 0:03:10]} 13. Rd2 {[%emt 0:01:49]} Bc5 {[%emt 0:07:26]} 14. Bxc5 {[%emt 0:00:59]} Nxc5 15. Rad1 {[%emt 0:02:02]} a5 {[%emt 0:03:16]} 16. b3 {[%emt 0:00:50]} Nh5 {[%emt 0:05:14]} 17. a3 {[%emt 0:09:18]} Nf4 {[%emt 0:09:34]} 18. Bf1 {[%emt 0:00:11]} a4 {[%emt 0:09:30]} 19. bxa4 {[%emt 0:04:19]} Qa5 {[%emt 0:03:25]} 20. g3 {[%emt 0:02:54]} Nh5 {[%emt 0:07:06]} 21. Kg2 {[%emt 0:01:38]} f6 {[%emt 0:02:08]} 22. Rd6 {[%emt 0:01:38]} Rf8 {[%emt 0:05:39]} 23. Qc1 {[%emt 0:03:05]} Ng7 {[%emt 0:01:01]} 24. Qe3 {[%emt 0:01:33]} Nge6 {[%emt 0:03:18]} 25. h4 {[%emt 0:02:44]} Qc7 {[%emt 0:11:05]} 26. R6d2 {[%emt 0:03:09]} Nxa4 {[%emt 0:06:45]} 27. Nxa4 {[%emt 0:08:35]} Rxa4 {[%emt 0:00:01]} 28. Rc1 {[%emt 0:02:25]} Qa5 {[%emt 0:00:44]} 29. Rc3 {[%emt 0:00:38]} Nc5 {[%emt 0:00:47]} 30. Rdc2 {[%emt 0:00:47]} Be6 {[%emt 0:00:44]} 31. Nd2 {[%emt 0:01:43]} Ra8 {[%emt 0:01:14]} 32. f4 {[%emt 0:03:00]} Rxa3 {[%emt 0:01:50]} 33. fxe5 {[%emt 0:10:05]} Rxc3 {[%emt 0:04:10]} 34. Rxc3 {[%emt 0:00:24]} fxe5 {[%emt 0:00:10]} 35. Rc2 {[%emt 0:05:36]} Qa4 {[%emt 0:03:56]} 36. Qc3 {[%emt 0:03:43]} Bg4 {[%emt 0:01:33]} 37. Rb2 {[%emt 0:03:23]} Re8 {[%emt 0:02:15]} 38. Qe3 {[%emt 0:01:52]} Qa1 {[%emt 0:01:46]} 39. Rc2 {[%emt 0:09:55]} Qd4 {[%emt 0:01:45]} 40. Rc3 {[%emt 0:01:34]} Rd8 {[%emt 0:15:58]} 41. Nf3 {[%emt 0:21:28]} Bxf3+ {[%emt 0:00:00]} 42. Qxf3 {[%emt 0:00:00]} Rf8 {[%emt 0:00:00]} 43. Qe3 {[%emt 0:00:00]} Nxe4 {[%emt 0:00:00]} 44. Rd3 {[%emt 0:00:00]} Qb2+ {[%emt 0:00:00]} 45. Kg1 {[%emt 0:00:00]} Qa1 {[%emt 0:00:00]} 46. Qe2 {[%emt 0:00:00]} Nc3 {[%emt 0:00:47]} 47. Qg2 {[%emt 0:00:00]} e4 {[%emt 0:01:00]} 48. Rd7 {[%emt 0:00:00]} e3 {[%emt 0:01:05]} 49. Qh3 {[%emt 0:00:00]} Ne2+ {[%emt 0:01:08]} 50. Kh2 {[%emt 0:00:00]} Rf2+ {[%emt 0:00:20]} 0-1

[Event "CZE-ch Open 2018"]
[Site "Ostrava"]
[Date "2018.05.05"]
[Round "8"]
[White "Kopriva, Martin"]
[Black "Kana, Pavel"]
[Result "1/2-1/2"]
[ECO "D02"]
[WhiteElo "2071"]
[BlackElo "2024"]
[Annotator "NA"]
[PlyCount "42"]
[EventDate "2018.??.??"]
[EventCountry "CZE"]
[SourceTitle "playchess.com"]
[Source "ChessBase"]
[SourceQuality "1"]
[TimeControl "40/5400+30:900+30"]

1. d4 {[%emt 0:00:00]} d5 {[%emt 0:00:19]} 2. Bf4 {[%emt 0:00:00]} Nf6 {[%emt 0:00:13]} 3. Nf3 {[%emt 0:00:00]} c5 {[%emt 0:00:59]} 4. e3 {[%emt 0:01:00]} Nc6 {[%emt 0:00:27]} 5. Be2 {[%emt 0:00:59]} Qb6 {[%emt 0:02:33]} 6. Nc3 {[%emt 0:02:33]} a6 {[%emt 0:06:51]} 7. dxc5 {[%emt 0:03:22]} Qxc5 {[%emt 0:03:42]} 8. O-O {[%emt 0:02:20]} e6 {[%emt 0:04:42]} 9. Nd4 {[%emt 0:05:39]} Be7 {[%emt 0:04:27]} 10. Nb3 {[%emt 0:01:35]} Qb6 {[%emt 0:10:13]} 11. a4 {[%emt 0:02:52]} Na5 {[%emt 0:07:00]} 12. Nxa5 {[%emt 0:06:19]} Qxa5 {[%emt 0:00:06]} 13. Bd3 {[%emt 0:01:03]} Bd7 {[%emt 0:04:24]} 14. h3 {[%emt 0:02:56]} Bc6 {[%emt 0:01:49]} 15. Ne2 {[%emt 0:01:34]} Rc8 {[%emt 0:06:45]} 16. c3 {[%emt 0:00:56]} O-O {[%emt 0:00:55]} 17. Nd4 {[%emt 0:02:08]} Qd8 {[%emt 0:08:08]} 18. b4 {[%emt 0:10:00]} Be8 {[%emt 0:10:16]} 19. Qb3 {[%emt 0:01:50]} Bd6 {[%emt 0:03:57]} 20. Bxd6 {[%emt 0:01:28]} Qxd6 {[%emt 0:00:02]} 21. Rfc1 {[%emt 0:01:35]} Bd7 {[%emt 0:01:48]} 1/2-1/2

[Event "CZE-ch Open 2018"]
[Site "Ostrava"]
[Date "2018.05.05"]
[Round "8"]
[White "Malinovsky, Petr"]
[Black "Freisler, Pavel"]
[Result "0-1"]
[ECO "E47"]
[WhiteElo "2006"]
[BlackElo "2266"]
[Annotator "ChessBase"]
[PlyCount "122"]
[EventDate "2018.??.??"]
[EventCountry "CZE"]
[SourceTitle "playchess.com"]
[Source "ChessBase"]
[SourceQuality "1"]
[TimeControl "40/5400+30:900+30"]

1. d4 {[%emt 0:00:00]} Nf6 {[%emt 0:00:07]} 2. c4 {[%emt 0:00:00]} e6 {[%emt 0:00:24]} 3. Nc3 {[%emt 0:00:00]} Bb4 {[%emt 0:00:40]} 4. e3 {[%emt 0:00:05]} O-O {[%emt 0:00:08]} 5. Bd3 {[%emt 0:00:21]} c5 {[%emt 0:00:53]} 6. Nge2 {[%emt 0:01:29]} d5 {[%emt 0:00:25]} 7. O-O {[%emt 0:00:39]} cxd4 {[%emt 0:01:09]} 8. exd4 {[%emt 0:00:29]} dxc4 {[%emt 0:00:11]} 9. Bxc4 {[%emt 0:00:20]} Nc6 {[%emt 0:00:06]} 10. Bg5 {[%emt 0:00:42]} Be7 {[%emt 0:00:26]} 11. a3 {[%emt 0:01:12]} a6 {[%emt 0:06:34]} 12. Ba2 {[%emt 0:10:20]} b5 {[%emt 0:06:26]} 13. b4 {[%emt 0:02:58]} Bb7 {[%emt 0:00:45]} 14. Rc1 {[%emt 0:01:33]} a5 {[%emt 0:11:09]} 15. Nxb5 {[%emt 0:04:14]} axb4 {[%emt 0:00:10]} 16. a4 {[%emt 0:02:42]} Nd5 {[%emt 0:09:49]} 17. Bxe7 {[%emt 0:03:17]} Ncxe7 {[%emt 0:00:45]} 18. Bb3 {[%emt 0:02:12]} Qb6 {[%emt 0:03:31]} 19. Qd2 {[%emt 0:04:10]} Rfc8 {[%emt 0:00:52]} 20. Nf4 {[%emt 0:01:40]} Nxf4 {[%emt 0:11:29]} 21. Qxf4 {[%emt 0:00:36]} Bd5 {[%emt 0:03:47]} 22. Qe3 {[%emt 0:20:23]} g6 {[%emt 0:15:17]} 23. h3 {[%emt 0:02:42]} Bxb3 {[%emt 0:04:19]} 24. Qxb3 {[%emt 0:00:02]} Nd5 {[%emt 0:00:03]} 25. Rc2 {[%emt 0:05:39]} Qa6 {[%emt 0:02:57]} 26. Ra1 {[%emt 0:01:02]} Rxc2 {[%emt 0:00:05]} 27. Qxc2 {[%emt 0:00:18]} Rc8 {[%emt 0:00:01]} 28. Qb2 {[%emt 0:07:49]} h5 {[%emt 0:00:42]} 29. Qb3 {[%emt 0:05:57]} Rc6 {[%emt 0:04:49]} 30. Qg3 {[%emt 0:01:32]} Qb6 {[%emt 0:02:50]} 31. Qb3 {[%emt 0:01:40]} Kg7 {[%emt 0:00:13]} 32. Qb2 {[%emt 0:01:19]} Rc4 {[%emt 0:00:27]} 33. Qb3 {[%emt 0:01:35]} Qc6 {[%emt 0:01:51]} 34. Qg3 {[%emt 0:00:32]} Rc2 {[%emt 0:01:04]} 35. Nd6 {[%emt 0:04:38]} Qc3 {[%emt 0:03:46]} 36. Qxc3 {[%emt 0:02:06]} Nxc3 {[%emt 0:00:28]} 37. Nb5 {[%emt 0:02:18]} Ne2+ {[%emt 0:04:39]} 38. Kf1 {[%emt 0:01:21]} b3 {[%emt 0:00:45]} 39. Rb1 {[%emt 0:01:33]} b2 {[%emt 0:00:11]} 40. Na3 {[%emt 0:00:17]} Nc3 {[%emt 0:15:53]} 41. Nxc2 {[%emt 0:16:18]} Nxb1 {[%emt 0:00:05]} 42. Ke1 {[%emt 0:00:38]} Nc3 {[%emt 0:00:15]} 43. Na3 {[%emt 0:00:11]} Nxa4 {[%emt 0:00:00]} 44. Kd2 {[%emt 0:00:00]} Kf6 {[%emt 0:00:00]} 45. Kc2 {[%emt 0:00:00]} Kf5 {[%emt 0:00:00]} 46. Kb3 {[%emt 0:00:00]} Nb6 {[%emt 0:00:00]} 47. Kxb2 {[%emt 0:00:00]} Ke4 {[%emt 0:00:00]} 48. Kc2 {[%emt 0:00:00]} Kxd4 {[%emt 0:00:00]} 49. Nb5+ {[%emt 0:00:00]} Ke5 {[%emt 0:00:00]} 50. Kd3 {[%emt 0:00:00]} Nd5 {[%emt 0:00:00]} 51. g3 {[%emt 0:00:00]} h4 {[%emt 0:00:00]} 52. Nd4 {[%emt 0:00:00]} hxg3 {[%emt 0:00:00]} 53. fxg3 {[%emt 0:00:00]} f5 {[%emt 0:00:00]} 54. Nf3+ {[%emt 0:00:00]} Kf6 {[%emt 0:00:00]} 55. Kd4 {[%emt 0:00:00]} Nb4 {[%emt 0:00:00]} 56. Ke3 {[%emt 0:00:00]} e5 {[%emt 0:00:00]} 57. g4 {[%emt 0:00:00]} Nd5+ {[%emt 0:00:00]} 58. Kf2 {[%emt 0:00:00]} e4 {[%emt 0:00:00]} 59. g5+ {[%emt 0:00:00]} Ke6 {[%emt 0:00:00]} 60. Ne1 {[%emt 0:00:00]} f4 {[%emt 0:00:00]} 61. h4 {[%emt 0:00:00]} Kf5 {[%emt 0:00:00]} 0-1

[Event "CZE-ch Open 2018"]
[Site "Ostrava"]
[Date "2018.05.05"]
[Round "8"]
[White "Benes, Miroslav"]
[Black "Cerveny, Martin"]
[Result "0-1"]
[ECO "B52"]
[WhiteElo "2004"]
[BlackElo "2379"]
[Annotator "NA"]
[PlyCount "88"]
[EventDate "2018.??.??"]
[EventCountry "CZE"]
[SourceTitle "playchess.com"]
[Source "ChessBase"]
[SourceQuality "1"]
[TimeControl "40/5400+30:900+30"]

1. e4 {[%emt 0:00:00]} c5 {[%emt 0:00:05]} 2. Nf3 {[%emt 0:00:00]} d6 {[%emt 0:00:03]} 3. Bb5+ {[%emt 0:00:00]} Bd7 {[%emt 0:00:05]} 4. Bxd7+ {[%emt 0:00:06]} Qxd7 {[%emt 0:00:04]} 5. c4 {[%emt 0:01:06]} Nf6 {[%emt 0:00:05]} 6. Nc3 {[%emt 0:00:06]} Nc6 {[%emt 0:00:05]} 7. d4 {[%emt 0:00:18]} cxd4 {[%emt 0:00:05]} 8. Nxd4 {[%emt 0:00:05]} Qg4 {[%emt 0:00:06]} 9. O-O {[%emt 0:15:24]} Qxd1 {[%emt 0:06:49]} 10. Rxd1 {[%emt 0:01:28]} Rc8 {[%emt 0:00:11]} 11. Nde2 {[%emt 0:07:25]} Rg8 {[%emt 0:03:14]} 12. b3 {[%emt 0:04:16]} g5 {[%emt 0:00:30]} 13. Ba3 {[%emt 0:02:48]} h5 {[%emt 0:03:11]} 14. Rac1 {[%emt 0:04:19]} h4 {[%emt 0:00:58]} 15. c5 {[%emt 0:01:16]} dxc5 {[%emt 0:00:28]} 16. Bxc5 {[%emt 0:00:26]} e6 {[%emt 0:00:48]} 17. Bxf8 {[%emt 0:00:43]} Kxf8 {[%emt 0:00:21]} 18. h3 {[%emt 0:06:33]} Ke7 {[%emt 0:01:07]} 19. f3 {[%emt 0:00:55]} Nh5 {[%emt 0:00:57]} 20. Nb5 {[%emt 0:02:18]} Rgd8 {[%emt 0:01:46]} 21. Kf2 {[%emt 0:04:52]} Nf4 {[%emt 0:01:09]} 22. Nxf4 {[%emt 0:02:28]} gxf4 {[%emt 0:00:03]} 23. a3 {[%emt 0:06:32]} a6 {[%emt 0:04:58]} 24. Nd4 {[%emt 0:03:35]} Nxd4 {[%emt 0:03:46]} 25. Rxc8 {[%emt 0:00:14]} Rxc8 {[%emt 0:00:03]} 26. Rxd4 {[%emt 0:00:07]} Rc2+ {[%emt 0:00:15]} 27. Kf1 {[%emt 0:00:11]} f6 {[%emt 0:00:06]} 28. Rb4 {[%emt 0:01:27]} b5 {[%emt 0:03:31]} 29. a4 {[%emt 0:00:45]} Rc5 {[%emt 0:00:39]} 30. Rd4 {[%emt 0:03:59]} e5 {[%emt 0:00:08]} 31. Rd3 {[%emt 0:00:47]} Rc1+ {[%emt 0:00:14]} 32. Kf2 {[%emt 0:02:59]} bxa4 {[%emt 0:00:20]} 33. bxa4 {[%emt 0:00:20]} Rc2+ {[%emt 0:00:07]} 34. Kf1 {[%emt 0:00:18]} Ra2 {[%emt 0:00:05]} 35. Rb3 {[%emt 0:00:07]} Rxa4 {[%emt 0:00:19]} 36. Rb6 {[%emt 0:01:09]} Ra2 {[%emt 0:00:34]} 37. Kg1 {[%emt 0:00:13]} a5 {[%emt 0:00:04]} 38. Ra6 {[%emt 0:00:06]} a4 {[%emt 0:00:04]} 39. Kh2 {[%emt 0:01:51]} Ra1 {[%emt 0:00:26]} 40. Ra7+ {[%emt 0:01:43]} Kd6 {[%emt 0:16:24]} 41. Ra8 {[%emt 0:23:43]} Kc5 {[%emt 0:00:58]} 42. Rb8 {[%emt 0:00:39]} a3 {[%emt 0:00:08]} 43. Rb7 {[%emt 0:00:14]} Kc4 {[%emt 0:00:22]} 44. Rb8 {[%emt 0:00:05]} Rd1 {[%emt 0:00:34]} 0-1

[Event "CZE-ch Open 2018"]
[Site "Ostrava"]
[Date "2018.05.06"]
[Round "9"]
[White "Konopka, Michal"]
[Black "Miesbauer, Jan"]
[Result "1/2-1/2"]
[ECO "E18"]
[WhiteElo "2373"]
[BlackElo "2261"]
[Annotator "NA"]
[PlyCount "80"]
[EventDate "2018.??.??"]
[EventCountry "CZE"]
[SourceTitle "playchess.com"]
[Source "ChessBase"]
[SourceQuality "1"]
[TimeControl "40/5400+30:900+30"]

1. d4 {[%emt 0:00:00]} Nf6 {[%emt 0:00:25]} 2. Nf3 {[%emt 0:00:36]} e6 {[%emt 0:01:00]} 3. g3 {[%emt 0:02:41]} b6 {[%emt 0:00:58]} 4. Bg2 {[%emt 0:00:17]} Bb7 {[%emt 0:00:05]} 5. O-O {[%emt 0:00:16]} Be7 {[%emt 0:00:23]} 6. c4 {[%emt 0:02:39]} O-O {[%emt 0:00:44]} 7. Nc3 {[%emt 0:02:47]} Ne4 {[%emt 0:01:05]} 8. Bd2 {[%emt 0:10:01]} Bf6 {[%emt 0:02:26] LiveBook: 692 Games} 9. Be1 {[%emt 0:06:52]} d5 {[%emt 0:07:30]} 10. Qc2 {[%emt 0:08:44]} Nd6 {[%emt 0:06:57]} 11. cxd5 $14 {[%emt 0:20:26]} exd5 {[%emt 0:00:07]} 12. Ne5 {[%emt 0:00:20]} c6 {[%emt 0:08:00]} 13. Bd2 {[%emt 0:06:15]} Bxe5 {[%emt 0:10:18]} 14. dxe5 {[%emt 0:00:06]} Nc4 {[%emt 0:00:04]} 15. f4 {[%emt 0:02:52]} f6 {[%emt 0:03:10]} 16. exf6 {[%emt 0:05:21]} Qxf6 {[%emt 0:00:08]} 17. e4 {[%emt 0:00:26]} Qd4+ {[%emt 0:05:14]} 18. Rf2 {[%emt 0:01:53]} Na6 {[%emt 0:00:24]} 19. Rd1 {[%emt 0:14:44]} Nb4 {[%emt 0:19:59]} 20. Qb1 {[%emt 0:00:37]} Qd3 {[%emt 0:10:26]} 21. exd5 {[%emt 0:02:56]} cxd5 {[%emt 0:01:22]} 22. Be1 {[%emt 0:02:11]} Qxb1 {[%emt 0:00:31]} 23. Nxb1 {[%emt 0:05:26]} a5 {[%emt 0:03:18]} 24. Bxb4 {[%emt 0:02:19]} axb4 {[%emt 0:00:12]} 25. Bxd5+ {[%emt 0:00:26]} Bxd5 {[%emt 0:00:06]} 26. Rxd5 {[%emt 0:00:04]} Rxa2 {[%emt 0:00:19]} 27. Rd4 {[%emt 0:01:12]} Rc8 {[%emt 0:01:54]} 28. b3 {[%emt 0:00:32]} Ra1 {[%emt 0:01:04]} 29. bxc4 {[%emt 0:00:14]} Rxb1+ {[%emt 0:00:07]} 30. Rf1 {[%emt 0:00:08]} Rxf1+ {[%emt 0:01:58]} 31. Kxf1 {[%emt 0:00:01]} Rc5 {[%emt 0:00:28]} 32. Ke2 {[%emt 0:00:42]} b5 {[%emt 0:00:32]} 33. cxb5 {[%emt 0:01:28]} Rxb5 {[%emt 0:00:05]} 34. Kd2 {[%emt 0:00:34]} b3 {[%emt 0:03:23]} 35. Kc1 {[%emt 0:00:01]} Rc5+ {[%emt 0:03:13]} 36. Kb2 {[%emt 0:00:48]} Rc2+ {[%emt 0:00:04]} 37. Kxb3 {[%emt 0:00:04]} Rxh2 {[%emt 0:00:04]} 38. Kc4 {[%emt 0:00:25]} Rg2 {[%emt 0:00:46]} 39. Rd3 {[%emt 0:00:14]} Kf7 {[%emt 0:00:20]} 40. Kd4 {[%emt 0:00:11]} Re2 {[%emt 0:15:23]} 1/2-1/2

[Event "CZE-ch Open 2018"]
[Site "Ostrava"]
[Date "2018.05.06"]
[Round "9"]
[White "Lechtynsky, Jiri"]
[Black "Malik, Jan"]
[Result "1/2-1/2"]
[ECO "D02"]
[WhiteElo "2349"]
[BlackElo "2284"]
[Annotator "NA"]
[PlyCount "57"]
[EventDate "2018.??.??"]
[EventCountry "CZE"]
[SourceTitle "playchess.com"]
[Source "ChessBase"]
[SourceQuality "1"]
[TimeControl "40/5400+30:900+30"]

1. Nf3 {[%emt 0:00:00]} d5 {[%emt 0:00:07]} 2. d4 {[%emt 0:00:00]} Nf6 {[%emt 0:00:09]} 3. c4 {[%emt 0:00:00]} c6 {[%emt 0:00:12]} 4. Qc2 {[%emt 0:03:20]} g6 {[%emt 0:03:53]} 5. Bf4 {[%emt 0:01:06]} Bg7 {[%emt 0:01:55]} 6. e3 {[%emt 0:00:26]} O-O {[%emt 0:08:09]} 7. Nc3 {[%emt 0:11:40]} Na6 {[%emt 0:00:09]} 8. a3 {[%emt 0:01:53] D93: Grünfeld: 4 Nf3 Bg7 5 Bf4 0-0 6 e3} (8. cxd5 Nb4 9. Qb3 Nbxd5 10. Be5 Qb6 11. Bc4 Qxb3 12. Bxb3 Nxc3 13. bxc3 Ne4 14. Rc1 b6 15. Bxg7 Kxg7 16. Ne5 {½-½ (40) Fridman,D (2637)-Malakhatko,V (2536) Karlsruhe 2018}) 8... c5 {[%emt 0:00:54] LiveBook: 9 Games} 9. cxd5 {[%emt 0:01:32]} cxd4 {[%emt 0:00:35]} 10. Nxd4 $146 {[%emt 0:00:40]} ({Predecessor:} 10. exd4 Nxd5 11. Nxd5 Qxd5 12. Bc4 Qa5+ 13. Qd2 Qxd2+ 14. Kxd2 {1-0 (43) Jakobsen,O (2389)-Hector,J (2515) Malmo 2003}) 10... Nxd5 {[%emt 0:00:42]} 11. Bg3 {[%emt 0:05:34]} Nxc3 {[%emt 0:20:10]} 12. Qxc3 {[%emt 0:01:32]} Qb6 {[%emt 0:00:39]} 13. Be2 {[%emt 0:10:03]} Nc5 {[%emt 0:04:27]} 14. f3 {[%emt 0:03:29]} Ne6 {[%emt 0:02:15]} 15. Rd1 {[%emt 0:01:18]} Nxd4 {[%emt 0:00:44]} 16. exd4 {[%emt 0:00:02]} Bf5 {[%emt 0:00:37]} 17. Bc7 {[%emt 0:06:43]} Qf6 {[%emt 0:00:37]} 18. Qe3 {[%emt 0:04:17]} Rac8 {[%emt 0:02:39]} 19. Be5 {[%emt 0:00:37]} Qb6 {[%emt 0:00:51]} 20. Bxg7 {[%emt 0:00:26]} Kxg7 {[%emt 0:00:07]} 21. Rd2 {[%emt 0:03:43]} Rfe8 {[%emt 0:07:25]} (21... Rc1+ $17 22. Bd1 Rd8) 22. Kf2 {[%emt 0:01:20]} Qd6 {[%emt 0:06:08]} 23. g4 {[%emt 0:03:41]} Bd7 {[%emt 0:01:04]} 24. h4 {[%emt 0:00:07]} Qe6 {[%emt 0:05:18]} 25. Qxe6 {[%emt 0:02:54]} Bxe6 $11 {[%emt 0:00:07]} 26. d5 {[%emt 0:00:08]} Bd7 {[%emt 0:00:27]} 27. Re1 {[%emt 0:01:23]} Rc5 {[%emt 0:04:01]} 28. Bf1 {[%emt 0:02:47]} Kf8 {[%emt 0:00:27]} 29. Re4 {[%emt 0:04:37]} 1/2-1/2

[Event "CZE-ch Open 2018"]
[Site "Ostrava"]
[Date "2018.05.06"]
[Round "9"]
[White "Hausner, Ivan"]
[Black "Mladek, Richard"]
[Result "0-1"]
[ECO "E63"]
[WhiteElo "2334"]
[BlackElo "2136"]
[Annotator "NA"]
[PlyCount "83"]
[EventDate "2018.??.??"]
[EventCountry "CZE"]
[SourceTitle "playchess.com"]
[Source "ChessBase"]
[SourceQuality "1"]
[TimeControl "40/5400+30:900+30"]

1. Nf3 {[%emt 0:00:00]} Nf6 {[%emt 0:00:06]} 2. g3 {[%emt 0:00:00]} g6 {[%emt 0:00:04]} 3. Bg2 {[%emt 0:00:00]} Bg7 {[%emt 0:00:05]} 4. c4 {[%emt 0:00:00]} O-O {[%emt 0:00:06]} 5. O-O {[%emt 0:00:17]} d6 {[%emt 0:00:09]} 6. Nc3 {[%emt 0:00:13]} Nc6 {[%emt 0:00:42]} 7. d4 {[%emt 0:00:15]} a6 {[%emt 0:00:22]} 8. d5 {[%emt 0:02:57]} Na5 {[%emt 0:00:22]} 9. Nd2 {[%emt 0:00:05]} c5 {[%emt 0:01:19]} 10. Qc2 {[%emt 0:00:17]} b5 {[%emt 0:01:06]} 11. cxb5 {[%emt 0:00:41] E66: King's Indian: Fianchetto: 6...c5 7 0-0 Nc6 8 d5} axb5 {[%emt 0:00:07]} 12. Nxb5 {[%emt 0:00:10]} Qb6 {[%emt 0:00:10]} 13. Nc3 {[%emt 0:00:06]} Bf5 {[%emt 0:00:30] LiveBook: 15 Games} 14. e4 {[%emt 0:00:13]} (14. Qd1) 14... Bc8 {[%emt 0:03:05]} 15. Re1 {[%emt 0:00:17]} Ng4 {[%emt 0:04:43]} 16. Nf1 $146 {[%emt 0:00:36]} ({Predecessor:} 16. h3 Ne5 17. Bf1 Ba6 18. Kg2 Bxf1+ 19. Nxf1 {½-½ (50) Freisler,P (2278)-Hansch,K (2239) Pardubice 2015}) 16... Ba6 {[%emt 0:03:45]} 17. Ne3 {[%emt 0:01:13]} Ne5 {[%emt 0:02:22]} 18. Rd1 {[%emt 0:00:16]} c4 {[%emt 0:08:49]} 19. Bd2 {[%emt 0:00:52]} Rfc8 {[%emt 0:02:36]} 20. Ne2 {[%emt 0:04:28] [#]} ({White should try} 20. h3 $11) 20... Nb3 $1 {[%emt 0:02:19]} 21. Rab1 {[%emt 0:00:22]} Nxd2 {[%emt 0:01:35]} 22. Rxd2 {[%emt 0:02:25]} Nd3 {[%emt 0:03:13]} 23. Nc3 {[%emt 0:00:22]} Rab8 {[%emt 0:01:50]} 24. Ned1 {[%emt 0:06:35]} Bd4 {[%emt 0:05:03]} 25. Re2 {[%emt 0:00:49]} Rc7 {[%emt 0:04:27]} 26. h3 {[%emt 0:02:09]} Rcb7 {[%emt 0:02:41]} 27. Bf1 {[%emt 0:12:13]} h5 {[%emt 0:05:05]} 28. h4 {[%emt 0:02:16]} Rc7 {[%emt 0:01:32]} 29. Bh3 {[%emt 0:00:11]} Be5 {[%emt 0:02:04]} 30. Kh2 {[%emt 0:02:48]} Qd4 {[%emt 0:01:43]} 31. Qd2 {[%emt 0:10:36]} Rcb7 {[%emt 0:01:47]} 32. Bf1 {[%emt 0:00:19]} Qc5 {[%emt 0:09:53]} 33. Kg2 {[%emt 0:04:04]} Qa5 {[%emt 0:00:38]} 34. Qe3 {[%emt 0:01:17]} Bxc3 {[%emt 0:03:28]} 35. Nxc3 $15 {[%emt 0:00:06]} Nxb2 {[%emt 0:00:52]} 36. e5 {[%emt 0:00:51]} Nd3 {[%emt 0:01:04]} 37. Rxb7 {[%emt 0:00:07]} Bxb7 {[%emt 0:01:14]} 38. exd6 {[%emt 0:01:40]} Qxc3 {[%emt 0:02:04]} 39. Qa7 {[%emt 0:02:11]} Bxd5+ {[%emt 0:02:26]} 40. Kg1 {[%emt 0:00:08]} Rb1 {[%emt 0:23:04]} 41. dxe7 {[%emt 0:15:28]} Rxf1+ {[%emt 0:00:15]} 42. Kh2 0-1

[Event "CZE-ch Open 2018"]
[Site "Ostrava"]
[Date "2018.05.06"]
[Round "9"]
[White "Michenka, Jozef"]
[Black "Toman, Jaroslav"]
[Result "0-1"]
[ECO "E90"]
[WhiteElo "2328"]
[BlackElo "2233"]
[Annotator "NA"]
[PlyCount "75"]
[EventDate "2018.??.??"]
[EventCountry "CZE"]
[SourceTitle "playchess.com"]
[Source "ChessBase"]
[SourceQuality "1"]
[TimeControl "40/5400+30:900+30"]

1. d4 {[%emt 0:00:00]} g6 {[%emt 0:00:06]} 2. e4 {[%emt 0:00:00]} d6 {[%emt 0:00:11]} 3. c4 {[%emt 0:00:00]} Nf6 {[%emt 0:00:09]} 4. Nc3 {[%emt 0:00:07]} Bg7 {[%emt 0:00:03]} 5. Nf3 {[%emt 0:00:12]} O-O {[%emt 0:00:10]} 6. h3 {[%emt 0:00:29]} c5 {[%emt 0:03:04]} 7. d5 {[%emt 0:00:06]} e6 {[%emt 0:03:37]} 8. Bd3 {[%emt 0:00:05]} exd5 {[%emt 0:03:17]} 9. exd5 {[%emt 0:00:06]} Re8+ {[%emt 0:05:27]} 10. Be3 {[%emt 0:00:16]} Nh5 {[%emt 0:13:23]} 11. O-O {[%emt 0:02:01] LiveBook: 83 Games} Ng3 {[%emt 0:02:08]} (11... Nd7 $14) 12. Re1 {[%emt 0:01:16]} ({Resist} 12. fxg3 $6 Rxe3 13. Qd2 Bh6 $14) 12... Nf5 {[%emt 0:00:29] [#]} 13. Bg5 {[%emt 0:03:27]} (13. Bf4 $1 $18) 13... Rxe1+ {[%emt 0:10:02]} 14. Qxe1 {[%emt 0:00:08]} f6 {[%emt 0:00:05]} 15. Bf4 {[%emt 0:00:48]} Nh6 {[%emt 0:01:44]} 16. Qe3 $16 {[%emt 0:22:07]} Nf7 {[%emt 0:00:18]} 17. Re1 {[%emt 0:00:43]} Bd7 {[%emt 0:04:44]} 18. Ne4 {[%emt 0:04:54]} Qf8 {[%emt 0:03:33]} 19. b4 {[%emt 0:33:17]} b6 {[%emt 0:06:14]} 20. bxc5 {[%emt 0:02:16]} bxc5 {[%emt 0:01:11]} 21. Bxd6 {[%emt 0:17:49]} Nxd6 {[%emt 0:00:51]} 22. Nxc5 {[%emt 0:00:02]} Bc8 {[%emt 0:19:17]} 23. Nd4 {[%emt 0:07:36]} Na6 {[%emt 0:06:04]} 24. Nce6 {[%emt 0:03:30]} Qf7 {[%emt 0:00:03]} 25. c5 {[%emt 0:00:42]} Nxc5 {[%emt 0:06:33]} 26. Nxc5 {[%emt 0:00:02]} Qxd5 {[%emt 0:00:07]} 27. Rc1 {[%emt 0:00:37]} Bh6 {[%emt 0:04:09]} 28. Qxh6 {[%emt 0:00:43]} Qxd4 {[%emt 0:00:08]} 29. Bxg6 {[%emt 0:00:18]} hxg6 {[%emt 0:00:19]} 30. Qxg6+ {[%emt 0:00:12]} Kf8 {[%emt 0:00:28]} 31. Qh6+ {[%emt 0:00:01]} Kg8 {[%emt 0:01:01]} 32. Qg6+ {[%emt 0:00:04]} Kf8 {[%emt 0:00:19]} 33. Qh6+ {[%emt 0:01:08]} Kg8 {[%emt 0:00:06]} 34. Nb3 {[%emt 0:00:00]} Qd5 {[%emt 0:03:03]} 35. Qg6+ {[%emt 0:01:36]} Kf8 {[%emt 0:00:08]} 36. Qh6+ {[%emt 0:00:47]} Kg8 {[%emt 0:00:01]} 37. Qg6+ {[%emt 0:00:30]} Kf8 {[%emt 0:00:00]} 38. Qxf6+ {[%emt 0:00:00]} 0-1